[Event "Titled Tuesday Blitz January 17 Early 2023"]
[White "Jimenez Almeida, Luis David"]
[Black "Nugumanov, Bakhtiyar"]
[WhiteFideId "22242244"]
[BlackFideId "13701797"]
[WhiteElo "2242"]
[BlackElo "2316"]
[Result "1-0"]
[Round "02"]
[TimeControl "180+2"]
[Date "2023.01.17"]
[WhiteClock "0:00:56"]
[BlackClock "0:00:02"]

1. e4 {[%clk 0:03:00]}  d6 {[%clk 0:03:00]} 2. d4 {[%clk 0:03:00]}  Nf6 {[%clk 0:03:00]} 3. Nc3 {[%clk 0:02:59]}  e5 {[%clk 0:03:01]} 4. Nge2 {[%clk 0:02:58]}  exd4 {[%clk 0:03:01]} 5. Nxd4 {[%clk 0:02:58]}  Be7 {[%clk 0:03:02]} 6. Bf4 {[%clk 0:02:58]}  O-O {[%clk 0:03:01]} 7. Qd2 {[%clk 0:02:58]}  d5 {[%clk 0:03:01]} 8. e5 {[%clk 0:02:55]}  Nh5 {[%clk 0:03:01]} 9. Bg3 {[%clk 0:02:45]}  c5 {[%clk 0:02:59]} 10. Nb3 {[%clk 0:02:44]}  d4 {[%clk 0:02:35]} 11. Ne4 {[%clk 0:02:43]}  Qd5 {[%clk 0:02:31]} 12. f3 {[%clk 0:02:39]}  Nxg3 {[%clk 0:02:22]} 13. hxg3 {[%clk 0:02:40]}  Bf5 {[%clk 0:02:20]} 14. O-O-O {[%clk 0:02:16]}  Nc6 {[%clk 0:02:00]} 15. Kb1 {[%clk 0:02:14]}  a5 {[%clk 0:01:58]} 16. c4 {[%clk 0:01:49]}  Qxe5 {[%clk 0:01:51]} 17. Bd3 {[%clk 0:01:49]}  Nb4 {[%clk 0:01:48]} 18. g4 {[%clk 0:01:47]}  Nxd3 {[%clk 0:01:44]} 19. gxf5 {[%clk 0:01:44]}  Nb4 {[%clk 0:01:13]} 20. g4 {[%clk 0:01:44]}  a4 {[%clk 0:01:10]} 21. Nc1 {[%clk 0:01:31]}  b5 {[%clk 0:00:49]} 22. a3 {[%clk 0:01:25]}  bxc4 {[%clk 0:00:35]} 23. axb4 {[%clk 0:01:24]}  Rfb8 {[%clk 0:00:35]} 24. f6 {[%clk 0:01:17]}  Bxf6 {[%clk 0:00:31]} 25. g5 {[%clk 0:01:16]}  c3 {[%clk 0:00:20]} 26. Qh2 {[%clk 0:01:14]}  Qxh2 {[%clk 0:00:13]} 27. Rxh2 {[%clk 0:01:15]}  Be7 {[%clk 0:00:13]} 28. bxc5 {[%clk 0:01:14]}  a3 {[%clk 0:00:11]} 29. b3 {[%clk 0:01:15]}  Rb5 {[%clk 0:00:05]} 30. Rdh1 {[%clk 0:01:14]}  Bxc5 {[%clk 0:00:04]} 31. Ka2 {[%clk 0:01:12]}  h6 {[%clk 0:00:01]} 32. gxh6 {[%clk 0:01:11]}  gxh6 {[%clk 0:00:01]} 33. Rxh6 {[%clk 0:01:11]}  Rab8 {[%clk 0:00:02]} 34. Nxc5 {[%clk 0:00:56]} 1-0


[Site "https://www.chess.com"]

[Event "Titled Tuesday Blitz January 17 Early 2023"]
[White "Buksa, Nataliya"]
[Black "Petrova, Irina"]
[WhiteFideId "14123622"]
[BlackFideId "14124122"]
[WhiteElo "2406"]
[BlackElo "2108"]
[Result "0-1"]
[Round "02"]
[TimeControl "180+2"]
[Date "2023.01.17"]
[WhiteClock "0:00:08"]
[BlackClock "0:00:17"]

1. d4 {[%clk 0:03:00]}  d6 {[%clk 0:03:00]} 2. Nc3 {[%clk 0:03:00]}  g6 {[%clk 0:03:00]} 3. e4 {[%clk 0:03:00]}  Bg7 {[%clk 0:03:01]} 4. f4 {[%clk 0:03:01]}  a6 {[%clk 0:03:01]} 5. Nf3 {[%clk 0:03:01]}  b5 {[%clk 0:03:01]} 6. Bd3 {[%clk 0:02:57]}  Nd7 {[%clk 0:03:00]} 7. e5 {[%clk 0:02:57]}  c5 {[%clk 0:02:47]} 8. exd6 {[%clk 0:02:47]}  cxd4 {[%clk 0:02:41]} 9. Ne4 {[%clk 0:02:45]}  Ngf6 {[%clk 0:02:35]} 10. O-O {[%clk 0:02:43]}  O-O {[%clk 0:02:32]} 11. Re1 {[%clk 0:02:43]}  Bb7 {[%clk 0:02:17]} 12. Nxd4 {[%clk 0:02:05]}  Nxe4 {[%clk 0:02:09]} 13. Bxe4 {[%clk 0:02:04]}  Bxe4 {[%clk 0:02:07]} 14. Rxe4 {[%clk 0:02:04]}  exd6 {[%clk 0:02:07]} 15. c3 {[%clk 0:01:57]}  Nc5 {[%clk 0:02:04]} 16. Re1 {[%clk 0:01:56]}  Re8 {[%clk 0:01:59]} 17. Be3 {[%clk 0:01:54]}  Qc7 {[%clk 0:01:35]} 18. Kh1 {[%clk 0:01:29]}  Re7 {[%clk 0:01:23]} 19. Bf2 {[%clk 0:01:26]}  Rae8 {[%clk 0:01:22]} 20. Rxe7 {[%clk 0:01:26]}  Rxe7 {[%clk 0:01:23]} 21. Qf3 {[%clk 0:01:25]}  Ne4 {[%clk 0:01:18]} 22. Bh4 {[%clk 0:01:16]}  Re8 {[%clk 0:01:13]} 23. Rd1 {[%clk 0:01:14]}  f5 {[%clk 0:01:11]} 24. Bf2 {[%clk 0:01:11]}  Qc4 {[%clk 0:00:56]} 25. a3 {[%clk 0:00:57]}  Nxf2+ {[%clk 0:00:24]} 26. Qxf2 {[%clk 0:00:57]}  Bxd4 {[%clk 0:00:24]} 27. cxd4 {[%clk 0:00:55]}  Qe2 {[%clk 0:00:21]} 28. Qxe2 {[%clk 0:00:15]}  Rxe2 {[%clk 0:00:22]} 29. h3 {[%clk 0:00:16]}  Rxb2 {[%clk 0:00:22]} 30. Rc1 {[%clk 0:00:16]}  Kf7 {[%clk 0:00:20]} 31. Rc6 {[%clk 0:00:16]}  Ke6 {[%clk 0:00:20]} 32. Rxa6 {[%clk 0:00:16]}  Kd5 {[%clk 0:00:20]} 33. Kh2 {[%clk 0:00:12]}  Ra2 {[%clk 0:00:20]} 34. Kg3 {[%clk 0:00:12]}  b4 {[%clk 0:00:19]} 35. Ra5+ {[%clk 0:00:12]}  Kxd4 {[%clk 0:00:19]} 36. axb4 {[%clk 0:00:04]}  Rxa5 {[%clk 0:00:17]} 37. bxa5 {[%clk 0:00:05]}  Kc5 {[%clk 0:00:17]} 38. Kf3 {[%clk 0:00:03]}  Kb5 {[%clk 0:00:17]} 39. Ke3 {[%clk 0:00:03]}  Kxa5 {[%clk 0:00:18]} 40. Kd4 {[%clk 0:00:04]}  Kb6 {[%clk 0:00:18]} 41. Kd5 {[%clk 0:00:05]}  Kc7 {[%clk 0:00:18]} 42. g3 {[%clk 0:00:02]}  Kd7 {[%clk 0:00:18]} 43. g4 {[%clk 0:00:03]}  fxg4 {[%clk 0:00:17]} 44. hxg4 {[%clk 0:00:03]}  Ke7 {[%clk 0:00:17]} 45. g5 {[%clk 0:00:03]}  Kd7 {[%clk 0:00:16]} 46. Kd4 {[%clk 0:00:03]}  Ke6 {[%clk 0:00:16]} 47. Ke4 {[%clk 0:00:04]}  d5+ {[%clk 0:00:16]} 48. Kd4 {[%clk 0:00:04]}  Kf5 {[%clk 0:00:15]} 49. Ke3 {[%clk 0:00:04]}  d4+ {[%clk 0:00:15]} 50. Kxd4 {[%clk 0:00:05]}  Kxf4 {[%clk 0:00:15]} 51. Kd3 {[%clk 0:00:05]}  Kxg5 {[%clk 0:00:16]} 52. Ke4 {[%clk 0:00:06]}  Kg4 {[%clk 0:00:16]} 53. Ke3 {[%clk 0:00:06]}  h5 {[%clk 0:00:16]} 54. Kf2 {[%clk 0:00:07]}  g5 {[%clk 0:00:17]} 55. Kg2 {[%clk 0:00:08]}  Kf4 {[%clk 0:00:17]} 0-1


[Site "https://www.chess.com"]

[Event "Titled Tuesday Blitz January 17 Early 2023"]
[White "Houska, Jovanka"]
[Black "Danielyan, Vahe"]
[WhiteFideId "405094"]
[BlackFideId "13304828"]
[WhiteElo "2338"]
[BlackElo "2346"]
[Result "0-1"]
[Round "02"]
[TimeControl "180+2"]
[Date "2023.01.17"]
[WhiteClock "0:00:08"]
[BlackClock "0:01:12"]

1. d4 {[%clk 0:03:00]}  Nf6 {[%clk 0:02:56]} 2. Nf3 {[%clk 0:02:58]}  g6 {[%clk 0:02:56]} 3. g3 {[%clk 0:02:58]}  Bg7 {[%clk 0:02:53]} 4. Bg2 {[%clk 0:02:59]}  O-O {[%clk 0:02:53]} 5. O-O {[%clk 0:02:59]}  Nc6 {[%clk 0:02:52]} 6. b3 {[%clk 0:02:58]}  d6 {[%clk 0:02:50]} 7. Bb2 {[%clk 0:02:58]}  Bf5 {[%clk 0:02:49]} 8. Nbd2 {[%clk 0:02:53]}  Ne4 {[%clk 0:02:47]} 9. c4 {[%clk 0:02:42]}  Nxd2 {[%clk 0:02:47]} 10. Qxd2 {[%clk 0:02:43]}  e5 {[%clk 0:02:45]} 11. dxe5 {[%clk 0:02:42]}  dxe5 {[%clk 0:02:44]} 12. Rfd1 {[%clk 0:02:31]}  Qe7 {[%clk 0:02:38]} 13. e3 {[%clk 0:02:18]}  Rad8 {[%clk 0:02:36]} 14. Qe2 {[%clk 0:02:12]}  Bg4 {[%clk 0:02:33]} 15. h3 {[%clk 0:02:11]}  Bc8 {[%clk 0:02:32]} 16. Nd2 {[%clk 0:01:55]}  h5 {[%clk 0:02:27]} 17. Ne4 {[%clk 0:01:46]}  h4 {[%clk 0:02:24]} 18. g4 {[%clk 0:01:45]}  f5 {[%clk 0:02:23]} 19. gxf5 {[%clk 0:01:43]}  gxf5 {[%clk 0:02:23]} 20. Nc3 {[%clk 0:01:42]}  Qg5 {[%clk 0:02:20]} 21. Kh1 {[%clk 0:01:38]}  Rxd1+ {[%clk 0:02:12]} 22. Rxd1 {[%clk 0:01:37]}  f4 {[%clk 0:02:11]} 23. exf4 {[%clk 0:01:31]}  Qxf4 {[%clk 0:02:06]} 24. Bd5+ {[%clk 0:01:17]}  Kh8 {[%clk 0:01:59]} 25. Qh5+ {[%clk 0:01:16]}  Qh6 {[%clk 0:01:55]} 26. Qxh6+ {[%clk 0:01:13]}  Bxh6 {[%clk 0:01:56]} 27. Ne4 {[%clk 0:01:12]}  Bf4 {[%clk 0:01:52]} 28. Rd3 {[%clk 0:00:57]}  Bf5 {[%clk 0:01:50]} 29. Rf3 {[%clk 0:00:52]}  Kh7 {[%clk 0:01:46]} 30. Nc5 {[%clk 0:00:25]}  Ne7 {[%clk 0:01:40]} 31. Ne6 {[%clk 0:00:17]}  Bxe6 {[%clk 0:01:38]} 32. Bxe6 {[%clk 0:00:18]}  Rd8 {[%clk 0:01:34]} 33. Kg2 {[%clk 0:00:13]}  Rd2 {[%clk 0:01:32]} 34. Bc3 {[%clk 0:00:13]}  Rxa2 {[%clk 0:01:30]} 35. Rd3 {[%clk 0:00:13]}  Kg6 {[%clk 0:01:28]} 36. Rd7 {[%clk 0:00:13]}  Kf6 {[%clk 0:01:28]} 37. Bg4 {[%clk 0:00:11]}  Nf5 {[%clk 0:01:28]} 38. Bxf5 {[%clk 0:00:09]}  Kxf5 {[%clk 0:01:28]} 39. Rxc7 {[%clk 0:00:09]}  b6 {[%clk 0:01:28]} 40. Rf7+ {[%clk 0:00:09]}  Ke4 {[%clk 0:01:28]} 41. b4 {[%clk 0:00:07]}  Rc2 {[%clk 0:01:25]} 42. Be1 {[%clk 0:00:06]}  Rxc4 {[%clk 0:01:22]} 43. Rxa7 {[%clk 0:00:07]}  Rc1 {[%clk 0:01:22]} 44. f3+ {[%clk 0:00:05]}  Ke3 {[%clk 0:01:20]} 45. Bf2+ {[%clk 0:00:05]}  Ke2 {[%clk 0:01:19]} 46. Ra2+ {[%clk 0:00:05]}  Kd3 {[%clk 0:01:17]} 47. Bxh4 {[%clk 0:00:06]}  Rb1 {[%clk 0:01:15]} 48. Bf2 {[%clk 0:00:06]}  Rxb4 {[%clk 0:01:15]} 49. Ra3+ {[%clk 0:00:06]}  Kc4 {[%clk 0:01:13]} 50. Ra6 {[%clk 0:00:06]}  b5 {[%clk 0:01:13]} 51. Rc6+ {[%clk 0:00:06]}  Kd3 {[%clk 0:01:12]} 52. h4 {[%clk 0:00:06]}  Rb2 {[%clk 0:01:11]} 53. Rd6+ {[%clk 0:00:06]}  Kc4 {[%clk 0:01:11]} 54. Rd1 {[%clk 0:00:06]}  Be3 {[%clk 0:01:10]} 55. Rf1 {[%clk 0:00:07]}  b4 {[%clk 0:01:10]} 56. h5 {[%clk 0:00:07]}  b3 {[%clk 0:01:11]} 57. Kg3 {[%clk 0:00:07]}  Bxf2+ {[%clk 0:01:10]} 58. Rxf2 {[%clk 0:00:07]}  Rxf2 {[%clk 0:01:11]} 59. Kxf2 {[%clk 0:00:08]}  b2 {[%clk 0:01:12]} 60. h6 {[%clk 0:00:08]}  b1=Q {[%clk 0:01:13]} 61. h7 {[%clk 0:00:09]}  Qxh7 {[%clk 0:01:13]} 62. Kg3 {[%clk 0:00:08]}  Qf5 {[%clk 0:01:12]} 0-1


[Site "https://www.chess.com"]

[Event "Titled Tuesday Blitz January 17 Early 2023"]
[White "Mrudul Dehankar"]
[Black "Goltseva, Ekaterina"]
[WhiteFideId "25096990"]
[BlackFideId "24173770"]
[WhiteElo "2030"]
[BlackElo "2283"]
[Result "1-0"]
[Round "02"]
[TimeControl "180+2"]
[Date "2023.01.17"]
[WhiteClock "0:00:10"]
[BlackClock "0:00:03"]

1. e4 {[%clk 0:03:00]}  e5 {[%clk 0:02:58]} 2. Nf3 {[%clk 0:03:00]}  Nc6 {[%clk 0:02:57]} 3. d4 {[%clk 0:02:59]}  exd4 {[%clk 0:02:57]} 4. Nxd4 {[%clk 0:03:00]}  Bc5 {[%clk 0:02:57]} 5. Nb3 {[%clk 0:02:57]}  Bb6 {[%clk 0:02:56]} 6. Nc3 {[%clk 0:02:58]}  Nf6 {[%clk 0:02:54]} 7. Bg5 {[%clk 0:02:42]}  h6 {[%clk 0:02:53]} 8. Bh4 {[%clk 0:02:42]}  Qe7 {[%clk 0:02:50]} 9. a4 {[%clk 0:02:24]}  g5 {[%clk 0:02:40]} 10. Bg3 {[%clk 0:02:23]}  Nxe4 {[%clk 0:02:40]} 11. Nd5 {[%clk 0:02:00]}  Qe6 {[%clk 0:02:14]} 12. Be2 {[%clk 0:01:50]}  Nxg3 {[%clk 0:01:30]} 13. hxg3 {[%clk 0:01:44]}  a5 {[%clk 0:01:08]} 14. Qd2 {[%clk 0:01:23]}  d6 {[%clk 0:00:27]} 15. O-O-O {[%clk 0:01:19]}  Bd7 {[%clk 0:00:17]} 16. Bg4 {[%clk 0:01:06]}  Qg6 {[%clk 0:00:08]} 17. Rde1+ {[%clk 0:00:47]}  Ne5 {[%clk 0:00:09]} 18. Bh5 {[%clk 0:00:40]}  Qg7 {[%clk 0:00:05]} 19. f4 {[%clk 0:00:39]}  O-O-O {[%clk 0:00:05]} 20. Nxb6+ {[%clk 0:00:31]}  cxb6 {[%clk 0:00:05]} 21. fxe5 {[%clk 0:00:31]}  Bxa4 {[%clk 0:00:02]} 22. Qc3+ {[%clk 0:00:24]}  Kb8 {[%clk 0:00:02]} 23. exd6 {[%clk 0:00:18]}  Qxc3 {[%clk 0:00:03]} 24. bxc3 {[%clk 0:00:19]}  Rxd6 {[%clk 0:00:03]} 25. Bxf7 {[%clk 0:00:19]}  Rc6 {[%clk 0:00:03]} 26. Kb2 {[%clk 0:00:17]}  b5 {[%clk 0:00:04]} 27. Bd5 {[%clk 0:00:14]}  Rd6 {[%clk 0:00:04]} 28. Bf3 {[%clk 0:00:14]}  b4 {[%clk 0:00:04]} 29. cxb4 {[%clk 0:00:13]}  axb4 {[%clk 0:00:04]} 30. Nc5 {[%clk 0:00:13]}  Bc6 {[%clk 0:00:04]} 31. Re7 {[%clk 0:00:11]}  Bxf3 {[%clk 0:00:03]} 32. gxf3 {[%clk 0:00:11]}  b6 {[%clk 0:00:02]} 33. Na6+ {[%clk 0:00:10]}  Kc8 {[%clk 0:00:03]} 34. Rc7+ {[%clk 0:00:10]}  Kd8 {[%clk 0:00:03]} 35. Ra7 {[%clk 0:00:11]}  Ke8 {[%clk 0:00:02]} 36. Ra8+ {[%clk 0:00:10]}  Rd8 {[%clk 0:00:02]} 37. Re1+ {[%clk 0:00:10]}  Kd7 {[%clk 0:00:03]} 38. Ra7+ {[%clk 0:00:10]}  Kc6 {[%clk 0:00:03]} 39. Nxb4+ {[%clk 0:00:10]}  Kb5 {[%clk 0:00:03]} 40. Kb3 {[%clk 0:00:10]}  Rd4 {[%clk 0:00:03]} 41. Re5+ {[%clk 0:00:10]} 1-0


[Site "https://www.chess.com"]

[Event "Titled Tuesday Blitz January 17 Early 2023"]
[White "Real_taiatai"]
[Black "Sai Han Thiha"]
[BlackFideId "13012290"]
[WhiteElo "2315"]
[BlackElo "2070"]
[Result "0-1"]
[Round "02"]
[TimeControl "180+2"]
[Date "2023.01.17"]
[WhiteClock "0:00:19"]
[BlackClock "0:00:07"]

1. d4 {[%clk 0:03:00]}  Nf6 {[%clk 0:03:00]} 2. c4 {[%clk 0:03:01]}  e6 {[%clk 0:03:00]} 3. g3 {[%clk 0:03:01]}  Bb4+ {[%clk 0:02:55]} 4. Nd2 {[%clk 0:03:01]}  d5 {[%clk 0:02:52]} 5. Bg2 {[%clk 0:03:00]}  O-O {[%clk 0:02:49]} 6. Nf3 {[%clk 0:02:59]}  Re8 {[%clk 0:02:22]} 7. O-O {[%clk 0:02:58]}  Bf8 {[%clk 0:02:20]} 8. b3 {[%clk 0:02:52]}  b6 {[%clk 0:01:56]} 9. Qc2 {[%clk 0:02:50]}  Bb7 {[%clk 0:01:56]} 10. Bb2 {[%clk 0:02:50]}  Nbd7 {[%clk 0:01:56]} 11. Rfd1 {[%clk 0:02:31]}  c5 {[%clk 0:01:56]} 12. cxd5 {[%clk 0:01:45]}  exd5 {[%clk 0:01:56]} 13. e3 {[%clk 0:01:42]}  Rc8 {[%clk 0:01:56]} 14. Qf5 {[%clk 0:01:39]}  g6 {[%clk 0:00:52]} 15. Qd3 {[%clk 0:01:29]}  Ne4 {[%clk 0:00:48]} 16. Rac1 {[%clk 0:01:28]}  Bg7 {[%clk 0:00:47]} 17. Ne1 {[%clk 0:01:18]}  Qe7 {[%clk 0:00:46]} 18. dxc5 {[%clk 0:01:17]}  Bxb2 {[%clk 0:00:45]} 19. c6 {[%clk 0:00:53]}  Bxc6 {[%clk 0:00:34]} 20. Rxc6 {[%clk 0:00:51]}  Rxc6 {[%clk 0:00:35]} 21. Qxd5 {[%clk 0:00:51]}  Rd6 {[%clk 0:00:30]} 22. Nxe4 {[%clk 0:00:30]}  Rxd5 {[%clk 0:00:29]} 23. Rxd5 {[%clk 0:00:29]}  Nf6 {[%clk 0:00:29]} 24. Nxf6+ {[%clk 0:00:30]}  Qxf6 {[%clk 0:00:29]} 25. Nd3 {[%clk 0:00:28]}  Rd8 {[%clk 0:00:28]} 26. Rxd8+ {[%clk 0:00:28]}  Qxd8 {[%clk 0:00:29]} 27. Nxb2 {[%clk 0:00:28]}  Qd2 {[%clk 0:00:29]} 28. Nc4 {[%clk 0:00:26]}  Qxa2 {[%clk 0:00:28]} 29. Ne5 {[%clk 0:00:20]}  Qxb3 {[%clk 0:00:27]} 30. h4 {[%clk 0:00:19]}  a5 {[%clk 0:00:26]} 31. Bf1 {[%clk 0:00:18]}  b5 {[%clk 0:00:23]} 32. Nc6 {[%clk 0:00:18]}  Qa4 {[%clk 0:00:08]} 33. Nd4 {[%clk 0:00:18]}  b4 {[%clk 0:00:08]} 34. Bc4 {[%clk 0:00:18]}  Kg7 {[%clk 0:00:09]} 35. Bb3 {[%clk 0:00:18]}  Qa1+ {[%clk 0:00:09]} 36. Kg2 {[%clk 0:00:18]}  a4 {[%clk 0:00:10]} 37. Bd5 {[%clk 0:00:18]}  b3 {[%clk 0:00:10]} 38. Nxb3 {[%clk 0:00:15]}  axb3 {[%clk 0:00:11]} 39. Bxb3 {[%clk 0:00:16]}  Qa8+ {[%clk 0:00:12]} 40. Kh2 {[%clk 0:00:16]}  Qf3 {[%clk 0:00:12]} 41. Kg1 {[%clk 0:00:15]}  Kf6 {[%clk 0:00:12]} 42. Bc4 {[%clk 0:00:15]}  h6 {[%clk 0:00:11]} 43. Bf1 {[%clk 0:00:16]}  Qd1 {[%clk 0:00:11]} 44. Kg2 {[%clk 0:00:16]}  Ke5 {[%clk 0:00:12]} 45. Kg1 {[%clk 0:00:15]}  f5 {[%clk 0:00:12]} 46. Kg2 {[%clk 0:00:16]}  g5 {[%clk 0:00:11]} 47. hxg5 {[%clk 0:00:17]}  hxg5 {[%clk 0:00:12]} 48. Bb5 {[%clk 0:00:17]}  Qd5+ {[%clk 0:00:11]} 49. f3 {[%clk 0:00:18]}  Qxb5 {[%clk 0:00:12]} 50. Kh3 {[%clk 0:00:18]}  Qf1+ {[%clk 0:00:12]} 51. Kh2 {[%clk 0:00:18]}  Qf2+ {[%clk 0:00:12]} 52. Kh3 {[%clk 0:00:18]}  Qg1 {[%clk 0:00:13]} 53. e4 {[%clk 0:00:19]}  Qh1# {[%clk 0:00:07]} 0-1


[Site "https://www.chess.com"]

[Event "Titled Tuesday Blitz January 17 Early 2023"]
[White "Lehtosaari, Mauri"]
[Black "Vasques, Antonio Pedro Freixial"]
[WhiteFideId "501999"]
[BlackFideId "1908332"]
[WhiteElo "2176"]
[BlackElo "2214"]
[Result "0-1"]
[Round "02"]
[TimeControl "180+2"]
[Date "2023.01.17"]
[WhiteClock "0:00:15"]
[BlackClock "0:00:46"]

1. Nf3 {[%clk 0:03:00]}  Nf6 {[%clk 0:02:59]} 2. c4 {[%clk 0:03:01]}  g6 {[%clk 0:02:57]} 3. Nc3 {[%clk 0:02:59]}  Bg7 {[%clk 0:02:58]} 4. e4 {[%clk 0:02:58]}  d6 {[%clk 0:02:59]} 5. d4 {[%clk 0:02:58]}  O-O {[%clk 0:02:59]} 6. Be2 {[%clk 0:02:58]}  e5 {[%clk 0:02:59]} 7. dxe5 {[%clk 0:02:58]}  dxe5 {[%clk 0:02:59]} 8. Qxd8 {[%clk 0:02:59]}  Rxd8 {[%clk 0:02:59]} 9. Bg5 {[%clk 0:03:00]}  Re8 {[%clk 0:02:58]} 10. Nd5 {[%clk 0:02:59]}  Nxd5 {[%clk 0:02:58]} 11. cxd5 {[%clk 0:02:56]}  c6 {[%clk 0:02:51]} 12. Bc4 {[%clk 0:02:32]}  cxd5 {[%clk 0:02:27]} 13. Bxd5 {[%clk 0:02:30]}  Nc6 {[%clk 0:02:25]} 14. O-O-O {[%clk 0:01:28]}  Bg4 {[%clk 0:02:22]} 15. Be3 {[%clk 0:00:58]}  Bxf3 {[%clk 0:01:58]} 16. gxf3 {[%clk 0:00:58]}  Nd4 {[%clk 0:01:34]} 17. Bxd4 {[%clk 0:00:55]}  exd4 {[%clk 0:01:35]} 18. Kc2 {[%clk 0:00:50]}  Rac8+ {[%clk 0:01:26]} 19. Kd3 {[%clk 0:00:50]}  b6 {[%clk 0:01:26]} 20. Rc1 {[%clk 0:00:46]}  Be5 {[%clk 0:01:25]} 21. h3 {[%clk 0:00:36]}  Kg7 {[%clk 0:01:21]} 22. Rc6 {[%clk 0:00:27]}  Rxc6 {[%clk 0:01:16]} 23. Bxc6 {[%clk 0:00:28]}  Rc8 {[%clk 0:01:14]} 24. Bd5 {[%clk 0:00:28]}  g5 {[%clk 0:01:11]} 25. h4 {[%clk 0:00:27]}  f6 {[%clk 0:01:04]} 26. hxg5 {[%clk 0:00:26]}  fxg5 {[%clk 0:01:05]} 27. Be6 {[%clk 0:00:26]}  Rc5 {[%clk 0:01:01]} 28. Bf5 {[%clk 0:00:26]}  h6 {[%clk 0:01:01]} 29. Rd1 {[%clk 0:00:22]}  h5 {[%clk 0:00:57]} 30. Rh1 {[%clk 0:00:21]}  h4 {[%clk 0:00:57]} 31. Rd1 {[%clk 0:00:21]}  Rb5 {[%clk 0:00:56]} 32. Rd2 {[%clk 0:00:20]}  Ra5 {[%clk 0:00:54]} 33. a3 {[%clk 0:00:20]}  Rb5 {[%clk 0:00:55]} 34. Rc2 {[%clk 0:00:20]}  Rb3+ {[%clk 0:00:54]} 35. Kc4 {[%clk 0:00:20]}  Rxf3 {[%clk 0:00:53]} 36. Kd5 {[%clk 0:00:20]}  d3 {[%clk 0:00:51]} 37. Rd2 {[%clk 0:00:19]}  Bf4 {[%clk 0:00:51]} 38. Rd1 {[%clk 0:00:20]}  d2 {[%clk 0:00:51]} 39. e5 {[%clk 0:00:20]}  Rxf2 {[%clk 0:00:48]} 40. e6 {[%clk 0:00:19]}  Kf6 {[%clk 0:00:48]} 41. Bg4 {[%clk 0:00:18]}  Rg2 {[%clk 0:00:48]} 42. Bh5 {[%clk 0:00:19]}  h3 {[%clk 0:00:48]} 43. e7 {[%clk 0:00:15]}  Kxe7 {[%clk 0:00:47]} 44. b4 {[%clk 0:00:15]}  h2 {[%clk 0:00:46]} 45. Rh1 {[%clk 0:00:15]}  Rg1 {[%clk 0:00:46]} 0-1


[Site "https://www.chess.com"]

[Event "Titled Tuesday Blitz January 17 Early 2023"]
[White "Manon-og, Ramon Jr."]
[Black "Md, Imran"]
[WhiteFideId "5200776"]
[BlackFideId "25748580"]
[WhiteElo "1999"]
[BlackElo "2284"]
[Result "0-1"]
[Round "02"]
[TimeControl "180+2"]
[Date "2023.01.17"]
[WhiteClock "0:00:43"]
[BlackClock "0:01:37"]

1. e4 {[%clk 0:02:53]}  c5 {[%clk 0:02:55]} 2. Nf3 {[%clk 0:02:52]}  g6 {[%clk 0:02:53]} 3. d4 {[%clk 0:02:51]}  cxd4 {[%clk 0:02:51]} 4. Nxd4 {[%clk 0:02:52]}  Bg7 {[%clk 0:02:45]} 5. Be2 {[%clk 0:02:52]}  Nc6 {[%clk 0:02:44]} 6. Nxc6 {[%clk 0:02:49]}  bxc6 {[%clk 0:02:45]} 7. O-O {[%clk 0:02:48]}  Nf6 {[%clk 0:02:43]} 8. Nc3 {[%clk 0:02:48]}  O-O {[%clk 0:02:41]} 9. Bg5 {[%clk 0:02:47]}  d6 {[%clk 0:02:40]} 10. Qd2 {[%clk 0:02:45]}  Rb8 {[%clk 0:02:38]} 11. b3 {[%clk 0:02:36]}  Qa5 {[%clk 0:02:38]} 12. Rad1 {[%clk 0:02:35]}  Re8 {[%clk 0:02:23]} 13. a4 {[%clk 0:01:35]}  Nd7 {[%clk 0:02:19]} 14. Nb1 {[%clk 0:01:17]}  Qc7 {[%clk 0:02:15]} 15. Nc3 {[%clk 0:01:15]}  Qa5 {[%clk 0:02:13]} 16. Nb1 {[%clk 0:01:15]}  Qb6 {[%clk 0:02:09]} 17. Bh6 {[%clk 0:01:11]}  Bh8 {[%clk 0:02:03]} 18. Be3 {[%clk 0:01:11]}  Qc7 {[%clk 0:01:56]} 19. f4 {[%clk 0:01:07]}  Nc5 {[%clk 0:01:51]} 20. Bxc5 {[%clk 0:00:56]}  dxc5 {[%clk 0:01:50]} 21. f5 {[%clk 0:00:56]}  Be5 {[%clk 0:01:45]} 22. h3 {[%clk 0:00:43]}  Kg7 {[%clk 0:01:37]} 0-1


[Site "https://www.chess.com"]

[Event "Titled Tuesday Blitz January 17 Early 2023"]
[White "Zanette, Edgard Vinicius"]
[Black "Novikov, Evgenij"]
[WhiteFideId "2109263"]
[BlackFideId "4125380"]
[WhiteElo "2085"]
[BlackElo "2276"]
[Result "1-0"]
[Round "02"]
[TimeControl "180+2"]
[Date "2023.01.17"]
[WhiteClock "0:00:09"]
[BlackClock "0:00:26"]

1. e4 {[%clk 0:03:00]}  c5 {[%clk 0:02:59]} 2. Nf3 {[%clk 0:03:00]}  d6 {[%clk 0:02:58]} 3. d4 {[%clk 0:03:00]}  cxd4 {[%clk 0:02:59]} 4. Nxd4 {[%clk 0:03:00]}  Nf6 {[%clk 0:02:59]} 5. Nc3 {[%clk 0:02:59]}  a6 {[%clk 0:02:53]} 6. Bc4 {[%clk 0:02:46]}  e6 {[%clk 0:02:53]} 7. Bb3 {[%clk 0:02:44]}  Be7 {[%clk 0:02:53]} 8. Bg5 {[%clk 0:02:32]}  O-O {[%clk 0:02:53]} 9. Qf3 {[%clk 0:02:26]}  Qc7 {[%clk 0:02:45]} 10. O-O-O {[%clk 0:02:13]}  Nc6 {[%clk 0:02:45]} 11. h4 {[%clk 0:01:52]}  Nxd4 {[%clk 0:02:42]} 12. Rxd4 {[%clk 0:01:51]}  b5 {[%clk 0:02:43]} 13. h5 {[%clk 0:01:47]}  h6 {[%clk 0:02:42]} 14. Be3 {[%clk 0:01:04]}  Bb7 {[%clk 0:02:41]} 15. g4 {[%clk 0:01:02]}  Nd7 {[%clk 0:02:37]} 16. g5 {[%clk 0:00:56]}  hxg5 {[%clk 0:02:28]} 17. h6 {[%clk 0:00:56]}  g6 {[%clk 0:02:28]} 18. Qg2 {[%clk 0:00:43]}  Qd8 {[%clk 0:02:05]} 19. h7+ {[%clk 0:00:37]}  Kh8 {[%clk 0:02:04]} 20. Rdd1 {[%clk 0:00:29]}  Nc5 {[%clk 0:02:02]} 21. Bxc5 {[%clk 0:00:27]}  dxc5 {[%clk 0:02:00]} 22. Rxd8 {[%clk 0:00:27]}  Rfxd8 {[%clk 0:02:01]} 23. a3 {[%clk 0:00:24]}  c4 {[%clk 0:02:01]} 24. Ba2 {[%clk 0:00:24]}  Bf6 {[%clk 0:02:01]} 25. Ne2 {[%clk 0:00:24]}  a5 {[%clk 0:01:59]} 26. c3 {[%clk 0:00:20]}  b4 {[%clk 0:01:57]} 27. Bxc4 {[%clk 0:00:20]}  bxa3 {[%clk 0:01:57]} 28. bxa3 {[%clk 0:00:19]}  Rac8 {[%clk 0:01:56]} 29. Ba2 {[%clk 0:00:18]}  Ba6 {[%clk 0:01:56]} 30. Qf3 {[%clk 0:00:16]}  Kg7 {[%clk 0:01:48]} 31. h8=Q+ {[%clk 0:00:14]}  Rxh8 {[%clk 0:01:46]} 32. Rxh8 {[%clk 0:00:14]}  Rxh8 {[%clk 0:01:47]} 33. Nd4 {[%clk 0:00:14]}  Rc8 {[%clk 0:01:45]} 34. Kb2 {[%clk 0:00:13]}  Rb8+ {[%clk 0:01:40]} 35. Kc1 {[%clk 0:00:13]}  Rc8 {[%clk 0:01:40]} 36. Kd2 {[%clk 0:00:13]}  Rb8 {[%clk 0:01:40]} 37. Bxe6 {[%clk 0:00:12]}  Rb7 {[%clk 0:01:01]} 38. Bd5 {[%clk 0:00:11]}  Rd7 {[%clk 0:00:56]} 39. Nc6 {[%clk 0:00:11]}  Bb7 {[%clk 0:00:53]} 40. Kc2 {[%clk 0:00:12]}  Rc7 {[%clk 0:00:50]} 41. e5 {[%clk 0:00:10]}  Be7 {[%clk 0:00:25]} 42. Qxf7+ {[%clk 0:00:10]}  Kh6 {[%clk 0:00:26]} 43. Nxe7 {[%clk 0:00:09]}  Bxd5 {[%clk 0:00:26]} 44. Qxg6# {[%clk 0:00:09]} 1-0


[Site "https://www.chess.com"]